bitfinex/quotes_SOLUSD_20241218
["timestamp","ask_amount","ask_price","bid_price","bid_amount"]
[1734502715072,7.23361609,216.05,215.98,1.6563]
[1734502715243,7.23361609,216.05,215.98,8.88991609]
[1734502720581,7.23361609,216.05,215.98,1.6563]
[1734502721576,7.23361609,216.05,215.98,8.88991609]
[1734502723079,7.23361609,216.04,215.98,1.6563]
[1734502723270,7.23361609,215.99,215.93,1.5619]
[1734502723479,7.23361609,215.98,215.93,1.5619]
[1734502724182,7.23361609,215.98,215.91,7.23361609]
[1734502724183,7.23361609,215.96,215.87,1.5619]
[1734502724557,7.23361609,215.96,215.89,7.23361609]
[1734502724990,7.23361609,215.95,215.87,1.5619]
[1734502725270,7.23361609,215.93,215.87,1.5619]
[1734502725484,7.23361609,215.92,215.87,1.5619]
[1734502725698,9.2603,215.98,215.87,8.79551609]
[1734502725900,7.23361609,215.93,215.87,1.5619]
[1734502726401,7.23361609,215.92,215.87,1.5619]
[1734502726689,7.23361609,215.91,215.87,1.5619]
[1734502726992,7.23361609,215.92,215.87,1.5619]
[1734502727598,7.23361609,215.91,215.87,1.5619]
[1734502728793,7.23361609,215.91,215.84,7.23361609]
[1734502729159,20.0,215.93,215.84,7.23361609]
[1734502729470,20.0,215.93,215.88,7.23361609]
[1734502729591,7.23361609,215.91,215.82,1.6433]
[1734502729794,7.23361609,215.9,215.83,7.23361609]
[1734502731622,7.23361609,215.89,215.82,8.87691609]
[1734502731819,7.23361609,215.89,215.83,7.23361609]
[1734502735492,7.23361609,215.89,215.82,8.87691609]
[1734502735904,7.23361609,215.89,215.73,0.69484444]
[1734502735905,7.23361609,215.84,215.78,7.23361609]
[1734502736120,7.23361609,215.83,215.77,1.6433]
[1734502736430,7.23361609,215.82,215.77,1.6433]
[1734502737728,7.23361609,215.83,215.77,1.6433]
[1734502738129,7.23361609,215.83,215.71,1.6433]
[1734502738329,7.23361609,215.82,215.75,7.23361609]
[1734502738528,7.23361609,215.82,215.71,1.6433]
[1734502738529,9.2654,215.86,215.77,7.23361609]
[1734502738757,7.23361609,215.84,215.77,7.23361609]
[1734502739343,7.23361609,215.83,215.76,7.23361609]
[1734502742873,7.23361609,215.84,215.76,7.23361609]
[1734502743079,7.23361609,215.82,215.71,1.6433]
[1734502743281,7.23361609,215.78,215.71,8.87691609]
[1734502743653,9.2665,215.84,215.71,8.87691609]
[1734502743654,7.23361609,215.8,215.73,7.23361609]
[1734502744142,7.23361609,215.8,215.71,1.6433]
[1734502744344,7.23361609,215.8,215.73,7.23361609]
[1734502745054,7.23361609,215.81,215.74,7.23361609]
[1734502745877,7.23361609,215.8,215.73,7.23361609]
[1734502746567,7.23361609,215.79,215.72,7.23361609]
[1734502748766,7.23361609,215.79,215.71,1.6433]
[1734502748767,7.23361609,215.8,215.73,7.23361609]
[1734502749655,7.23361609,215.8,215.71,1.6433]
[1734502749852,7.23361609,215.8,215.73,7.23361609]
[1734502750391,27.23361609,215.81,215.73,7.23361609]
[1734502750556,7.23361609,215.8,215.73,7.23361609]
[1734502751297,7.23361609,215.78,215.71,1.6433]
[1734502751581,7.23361609,215.79,215.72,7.23361609]
[1734502753168,16.50141609,215.8,215.73,7.23361609]
[1734502753373,7.23361609,215.75,215.66,1.6433]
[1734502753575,7.23361609,215.73,215.67,7.23361609]
[1734502753767,7.23361609,215.73,215.66,8.87691609]
[1734502753968,7.23361609,215.72,215.66,1.6433]
[1734502754485,7.23361609,215.7,215.66,1.6433]
[1734502754673,7.23361609,215.69,215.66,1.6433]
[1734502755199,7.23361609,215.7,215.66,1.6433]
[1734502755375,7.23361609,215.68,215.61,1.6433]
[1734502755574,7.23361609,215.68,215.61,8.87691609]
[1734502755809,38.20616436,215.71,215.61,1.6433]
[1734502756011,7.23361609,215.64,215.61,1.6433]
[1734502756319,7.23361609,215.64,215.56,1.6433]
[1734502756522,7.23361609,215.64,215.58,7.23361609]
[1734502756701,7.23361609,215.65,215.58,7.23361609]
[1734502757111,7.23361609,215.64,215.56,1.6433]
[1734502757337,7.23361609,215.64,215.57,7.23361609]
[1734502758144,20.0,215.7,215.62,7.23361609]
[1734502758347,7.23361609,215.69,215.62,7.23361609]
[1734502759107,7.23361609,215.68,215.61,7.23361609]
[1734502759739,7.23361609,215.68,215.6,7.23361609]
[1734502759942,11.34846939,215.66,215.56,1.6433]
[1734502760144,11.34846939,215.66,215.59,11.34846939]
[1734502760371,11.34846939,215.67,215.6,11.34846939]
[1734502761048,11.34846939,215.68,215.61,11.34846939]
[1734502761377,11.34846939,215.69,215.62,11.34846939]
[1734502762435,11.34846939,215.7,215.63,11.34846939]
[1734502763647,11.34846939,215.69,215.62,11.34846939]
[1734502764232,11.34846939,215.68,215.61,11.34846939]
[1734502764636,11.34846939,215.68,215.62,23.776884]
[1734502764842,11.34846939,215.68,215.61,23.776884]
[1734502765477,11.34846939,215.67,215.61,23.776884]
[1734502765775,11.34846939,215.67,215.6,11.34846939]
[1734502766140,11.34846939,215.68,215.6,11.34846939]
[1734502766465,11.34846939,215.68,215.61,11.34846939]
[1734502767111,11.34846939,215.65,215.58,11.34846939]
[1734502767999,11.34846939,215.63,215.56,12.99176939]
[1734502768173,11.34846939,215.62,215.56,12.99176939]
[1734502768381,11.34846939,215.71,215.57,11.34846939]
[1734502768382,11.34846939,215.64,215.57,11.34846939]
[1734502770118,11.34846939,215.63,215.57,11.34846939]
[1734502771489,11.34846939,215.63,215.56,12.99176939]
[1734502772007,11.34846939,215.63,215.57,11.34846939]
[1734502772170,11.34846939,215.64,215.57,11.34846939]
[1734502773890,11.34846939,215.65,215.58,11.34846939]
[1734502774838,11.34846939,215.64,215.57,11.34846939]
[1734502775713,22.69693939,215.64,215.57,11.34846939]
[1734502777045,11.34846939,215.66,215.58,11.34846939]
[1734502777203,11.34846939,215.69,215.61,11.34846939]
[1734502777407,20.0,215.68,215.61,11.34846939]
[1734502777730,20.0,215.66,215.61,11.34846939]
[1734502777899,11.34846939,215.67,215.6,11.34846939]
[1734502778423,11.34846939,215.66,215.59,11.34846939]
[1734502779413,18.5403,215.67,215.6,11.34846939]
[1734502779735,29.88876939,215.67,215.6,11.34846939]
[1734502780032,25.80273751,215.67,215.6,7.26243751]
[1734502780331,18.5403,215.67,215.6,7.26243751]
[1734502780521,25.80273751,215.67,215.6,7.26243751]
[1734502781099,9.2717,215.71,215.63,7.26243751]
[1734502781300,7.26243751,215.71,215.63,7.26243751]
[1734502781507,7.26243751,215.69,215.62,7.26243751]
[1734502782416,7.26243751,215.69,215.57,30.735084]
[1734502782417,10.849257,215.7,215.64,7.26243751]
[1734502782615,18.11169451,215.7,215.63,7.26243751]
[1734502782826,18.11169451,215.7,215.57,30.735084]
[1734502782827,7.26243751,215.67,215.57,30.735084]
[1734502783017,7.26243751,215.66,215.6,7.26243751]
[1734502783217,7.26243751,215.67,215.6,7.26243751]
[1734502783532,7.26243751,215.61,215.56,1.6433]
[1734502783736,7.26243751,215.6,215.56,1.6433]
[1734502784628,20.0,215.65,215.56,1.6433]
[1734502784829,7.26243751,215.62,215.56,1.6433]
[1734502785310,7.26243751,215.61,215.56,1.6433]
[1734502786246,7.26243751,215.62,215.56,8.90573751]
[1734502786412,7.26243751,215.63,215.57,7.26243751]
[1734502787125,7.26243751,215.63,215.56,8.90573751]
[1734502788532,7.26243751,215.62,215.56,1.6433]
[1734502789049,7.26243751,215.64,215.57,7.26243751]
[1734502790071,20.0,215.63,215.57,7.26243751]
[1734502790370,9.33051025,215.68,215.59,7.26243751]
[1734502790562,20.121757,215.7,215.61,7.26243751]
[1734502790877,7.26243751,215.69,215.62,7.26243751]
[1734502791037,7.26243751,215.68,215.61,7.26243751]
[1734502791238,7.26243751,215.68,215.57,23.776884]
[1734502791475,7.26243751,215.67,215.59,7.26243751]
[1734502793275,7.26243751,215.68,215.61,7.26243751]
[1734502794567,7.26243751,215.67,215.6,7.26243751]
[1734502795660,7.26243751,215.69,215.62,7.26243751]
[1734502796204,7.26243751,215.68,215.61,7.26243751]
[1734502796564,7.26243751,215.67,215.6,7.26243751]
[1734502797187,7.26243751,215.66,215.6,7.26243751]
[1734502799167,7.26243751,215.66,215.57,23.776884]
[1734502799168,7.26243751,215.66,215.59,7.26243751]
[1734502800407,7.26243751,215.66,215.6,7.26243751]
[1734502800691,7.26243751,215.66,215.59,7.26243751]
[1734502800903,20.121757,215.7,215.6,7.26243751]
[1734502801191,7.26243751,215.68,215.61,7.26243751]
[1734502801768,7.26243751,215.67,215.6,7.26243751]
[1734502803299,7.26243751,215.68,215.61,7.26243751]
[1734502804003,7.26243751,215.67,215.6,7.26243751]
[1734502804292,7.26243751,215.67,215.57,23.776884]
[1734502804497,7.26243751,215.67,215.6,7.26243751]
[1734502804872,7.26243751,215.66,215.59,7.26243751]
[1734502805272,7.26243751,215.67,215.6,7.26243751]
[1734502805472,7.26243751,215.66,215.59,7.26243751]
[1734502805701,7.26243751,215.61,215.56,1.6433]
[1734502805879,7.26243751,215.59,215.56,1.6433]
[1734502806593,7.26243751,215.59,215.52,7.26243751]
[1734502807164,9.2738,215.67,215.57,7.26243751]
[1734502807399,7.26243751,215.66,215.59,7.26243751]
[1734502807793,7.26243751,215.65,215.55,23.776884]
[1734502807995,7.26243751,215.64,215.58,7.26243751]
[1734502808171,7.26243751,215.65,215.58,7.26243751]
[1734502809898,7.26243751,215.63,215.56,7.26243751]
[1734502810094,20.0,215.67,215.58,7.26243751]
[1734502810297,20.0,215.67,215.6,7.26243751]
[1734502810298,27.26243751,215.67,215.6,7.26243751]
[1734502811224,7.26243751,215.66,215.6,7.26243751]
[1734502811719,7.26243751,215.66,215.59,8.77343751]
[1734502812203,7.26243751,215.64,215.59,1.511]
[1734502812592,7.26243751,215.63,215.59,1.511]
[1734502813195,7.26243751,215.64,215.59,1.511]
[1734502813410,7.26243751,215.63,215.59,1.511]
[1734502813787,7.26243751,215.62,215.59,1.511]
[1734502814009,7.26243751,215.64,215.59,1.511]
[1734502814393,7.26243751,215.64,215.53,1.511]
[1734502814603,7.26243751,215.63,215.56,7.26243751]
[1734502815010,7.26243751,215.6,215.53,1.511]
[1734502815318,7.26243751,215.6,215.53,8.77343751]
[1734502815501,7.26243751,215.59,215.53,1.511]
[1734502815701,7.26243751,215.56,215.53,1.511]
[1734502816018,30.241184,215.65,215.53,1.511]
[1734502816231,7.26243751,215.57,215.53,1.511]
[1734502817498,7.26243751,215.58,215.53,1.511]
[1734502817702,7.26243751,215.6,215.53,8.77343751]
[1734502817941,9.2758,215.62,215.55,7.26243751]
[1734502817942,20.0,215.62,215.55,7.26243751]
[1734502818227,7.26243751,215.64,215.57,7.26243751]
[1734502819004,7.26243751,215.65,215.58,7.26243751]
[1734502819504,7.26243751,215.64,215.57,7.26243751]
[1734502822202,2.77504866,215.69,215.6,7.26243751]
[1734502822400,7.26243751,215.67,215.6,7.26243751]
[1734502822914,7.26243751,215.66,215.59,7.26243751]
[1734502824249,20.0,215.69,215.59,7.26243751]
[1734502824457,7.26243751,215.66,215.59,7.26243751]
[1734502824819,7.26243751,215.67,215.6,7.26243751]
[1734502825223,7.26243751,215.66,215.59,7.26243751]
[1734502826737,7.26243751,215.65,215.59,7.26243751]
[1734502827056,7.26243751,215.65,215.58,31.03932151]
[1734502827224,7.26243751,215.65,215.58,7.26243751]
[1734502827430,7.26243751,215.63,215.57,6.5512]
[1734502827630,7.26243751,215.62,215.57,6.5512]
[1734502827846,7.26243751,215.64,215.57,13.81363751]
[1734502828155,7.26243751,215.63,215.57,6.5512]
[1734502828530,7.26243751,215.63,215.54,23.776884]
[1734502828929,7.26243751,215.63,215.56,7.26243751]
[1734502830062,7.26243751,215.62,215.56,7.26243751]
[1734502830351,7.26243751,215.63,215.56,7.26243751]
[1734502830556,7.26243751,215.62,215.56,7.26243751]
[1734502830763,7.26243751,215.63,215.56,7.26243751]
[1734502830926,7.26243751,215.64,215.57,7.26243751]
[1734502831123,7.26243751,215.63,215.56,7.26243751]
[1734502831329,7.26243751,215.6,215.54,23.776884]
[1734502831567,7.26243751,215.61,215.54,31.03932151]
[1734502833157,7.26243751,215.62,215.55,7.26243751]
[1734502833530,20.0,215.67,215.56,7.26243751]
[1734502833730,7.26243751,215.63,215.56,7.26243751]
[1734502833952,7.26243751,215.62,215.56,7.26243751]
[1734502834631,7.26243751,215.62,215.56,23.776884]
[1734502834830,7.26243751,215.62,215.56,31.03932151]
[1734502836360,7.26243751,215.63,215.56,31.03932151]
[1734502837065,7.26243751,215.63,215.53,1.511]
[1734502837066,19.21129258,215.74,215.59,7.26243751]
[1734502837269,7.26243751,215.67,215.6,7.26243751]
[1734502837824,7.26243751,215.68,215.61,7.26243751]
[1734502838063,7.26243751,215.67,215.6,7.26243751]
[1734502838664,7.26243751,215.64,215.58,23.776884]
[1734502838878,7.26243751,215.64,215.58,7.26243751]
[1734502839163,7.26243751,215.65,215.59,7.26243751]
[1734502839472,7.26243751,215.66,215.6,7.26243751]
[1734502840832,20.0,215.68,215.62,7.26243751]
[1734502841029,7.26243751,215.7,215.64,7.26243751]
[1734502841330,9.2705,215.74,215.62,31.03932151]
[1734502841331,7.26243751,215.69,215.62,31.03932151]
[1734502843341,7.26243751,215.68,215.62,31.03932151]
[1734502844048,7.26243751,215.67,215.62,23.776884]
[1734502844358,7.26243751,215.69,215.62,31.03932151]
[1734502845534,7.26243751,215.69,215.62,23.776884]
[1734502845734,7.26243751,215.69,215.62,31.03932151]
[1734502846634,7.26243751,215.69,215.63,7.26243751]
[1734502847783,7.26243751,215.7,215.64,31.03932151]
[1734502847943,7.26243751,215.72,215.65,7.26243751]
[1734502848272,7.26243751,215.76,215.69,7.26243751]
[1734502850545,6.3619,215.81,215.7,31.03932151]
[1734502850748,7.26243751,215.79,215.72,7.26243751]
[1734502851267,4.63235651,215.84,215.71,7.26243751]
[1734502851268,7.26243751,215.78,215.71,7.26243751]
[1734502851651,7.26243751,215.79,215.72,7.26243751]
[1734502852647,4.63235651,215.84,215.74,23.776884]
[1734502852869,7.26243751,215.82,215.76,23.776884]
[1734502854349,37.19209526,215.9,215.76,31.03932151]
[1734502854350,7.26243751,215.83,215.76,31.03932151]
[1734502854549,7.26243751,215.84,215.77,7.26243751]
[1734502855777,27.92819526,215.9,215.79,7.26243751]
[1734502855982,7.26243751,215.87,215.81,23.776884]
[1734502856489,7.26243751,215.88,215.81,7.26243751]
[1734502856673,7.26243751,215.88,215.8,7.26243751]
[1734502856878,7.26243751,215.87,215.8,7.26243751]
[1734502857237,7.26243751,215.88,215.81,23.776884]
[1734502857686,7.26243751,215.88,215.78,1.6236]
[1734502857861,7.26243751,215.84,215.78,1.6236]
[1734502858250,7.26243751,215.82,215.78,1.6236]
[1734502859276,7.26243751,215.83,215.78,1.6236]
[1734502859482,7.26243751,215.84,215.78,1.6236]
[1734502860480,9.2638,215.9,215.78,1.6236]
[1734502860481,7.26243751,215.83,215.78,1.6236]
[1734502860855,7.26243751,215.79,215.73,1.6236]
[1734502861078,7.26243751,215.77,215.73,1.6236]
[1734502861278,7.26243751,215.79,215.73,1.6236]
[1734502863378,9.2658,215.85,215.73,1.6236]
[1734502863726,7.26243751,215.74,215.68,1.6236]
[1734502865213,7.26243751,215.73,215.68,1.6236]
[1734502865403,7.26243751,215.71,215.68,1.6236]
[1734502865602,7.26243751,215.69,215.63,1.5906]
[1734502866484,7.26243751,215.68,215.63,1.5906]
[1734502866887,7.26243751,215.69,215.63,1.5906]
[1734502870104,7.26243751,215.68,215.63,1.5906]
[1734502870309,7.26243751,215.67,215.63,1.5906]
[1734502871847,7.26243751,215.69,215.63,1.5906]
[1734502873418,7.26243751,215.68,215.63,1.5906]
[1734502873814,7.26243751,215.69,215.63,1.5906]
[1734502874038,7.26243751,215.71,215.64,7.26243751]
[1734502874214,20.0,215.73,215.67,7.26243751]
[1734502874614,27.26243751,215.73,215.65,7.26243751]
[1734502875023,20.0,215.73,215.68,7.26243751]
[1734502875326,7.26243751,215.76,215.69,7.26243751]
[1734502875529,7.26243751,215.77,215.7,7.26243751]
[1734502876136,7.26243751,215.78,215.71,7.26243751]
[1734502876363,7.26243751,215.78,215.66,6.2493]
[1734502876364,6.4571,215.81,215.72,7.26243751]
[1734502876584,7.26243751,215.79,215.72,7.26243751]
[1734502876863,7.26243751,215.8,215.73,7.26243751]
[1734502877051,15.7223,215.86,215.74,7.26243751]
[1734502877241,7.26243751,215.82,215.74,7.26243751]
[1734502877558,7.26243751,215.85,215.78,7.26243751]
[1734502877760,7.26243751,215.85,215.74,23.776884]
[1734502877932,7.26243751,215.84,215.76,7.26243751]
[1734502878137,7.26243751,215.84,215.77,7.26243751]
[1734502878343,7.26243751,215.85,215.78,7.26243751]
[1734502879833,2.82171047,215.87,215.79,7.26243751]
[1734502880180,11.32681202,215.87,215.8,11.32681202]
[1734502880482,11.32681202,215.87,215.79,11.32681202]
[1734502881339,11.32681202,215.87,215.8,11.32681202]
[1734502881744,11.32681202,215.88,215.81,11.32681202]
[1734502881935,11.32681202,215.85,215.78,23.776884]
[1734502882137,11.32681202,215.83,215.76,11.32681202]
[1734502882356,11.32681202,215.82,215.75,11.32681202]
[1734502882566,11.32681202,215.82,215.76,23.776884]
[1734502882765,11.32681202,215.83,215.76,11.32681202]
[1734502883162,11.32681202,215.82,215.75,11.32681202]
[1734502883669,11.32681202,215.82,215.74,11.32681202]
[1734502884262,11.32681202,215.81,215.74,11.32681202]
[1734502884449,11.32681202,215.8,215.73,12.91741202]
[1734502884646,11.32681202,215.81,215.74,11.32681202]
[1734502885559,11.32681202,215.8,215.73,12.91741202]
[1734502886074,11.32681202,215.81,215.74,11.32681202]
[1734502886763,11.32681202,215.8,215.73,1.5906]
[1734502886950,11.32681202,215.8,215.73,12.91741202]
[1734502887371,11.32681202,215.81,215.74,11.32681202]
[1734502887955,11.32681202,215.8,215.73,12.91741202]
[1734502888662,20.0,215.82,215.73,12.91741202]
[1734502888840,11.32681202,215.81,215.74,11.32681202]
[1734502890379,20.0,215.82,215.75,11.32681202]
[1734502890579,20.0,215.82,215.77,11.32681202]
[1734502890752,11.32681202,215.85,215.78,11.32681202]
[1734502890954,11.32681202,215.86,215.78,11.32681202]
[1734502891154,11.32681202,215.86,215.79,11.32681202]
[1734502891578,11.32681202,215.87,215.79,11.32681202]
[1734502892089,11.32681202,215.88,215.8,11.32681202]
[1734502892256,11.32681202,215.88,215.81,11.32681202]
[1734502892450,11.32681202,215.88,215.8,11.32681202]
[1734502893383,11.32681202,215.91,215.83,11.32681202]
[1734502893592,11.32681202,215.91,215.84,11.32681202]
[1734502894384,11.32681202,215.93,215.86,11.32681202]
[1734502894554,11.32681202,215.92,215.85,11.32681202]
[1734502895461,11.32681202,215.94,215.86,11.32681202]
[1734502895654,11.32681202,215.96,215.89,11.32681202]
[1734502897984,11.32681202,215.95,215.88,11.32681202]
[1734502898158,11.32681202,215.93,215.86,11.32681202]
[1734502899091,11.32681202,215.91,215.83,11.32681202]
[1734502899394,11.32681202,215.91,215.84,11.32681202]
[1734502899966,11.32681202,215.92,215.85,11.32681202]
[1734502900383,11.32681202,215.93,215.86,11.32681202]
[1734502900586,11.32681202,215.92,215.85,11.32681202]
[1734502901293,11.32681202,215.91,215.84,11.32681202]
[1734502901585,11.32681202,215.85,215.77,12.96391202]
[1734502901760,11.32681202,215.84,215.77,12.96391202]
[1734502902473,11.32681202,215.83,215.77,1.6371]
[1734502904551,11.32681202,215.84,215.77,1.6371]
[1734502904756,11.32681202,215.83,215.77,1.6371]
[1734502909361,20.0,215.84,215.77,1.6371]
[1734502909567,11.32681202,215.87,215.8,11.32681202]
[1734502911265,11.32681202,215.87,215.79,11.32681202]
[1734502911487,11.32681202,215.84,215.77,1.6371]
[1734502911859,11.32681202,215.83,215.77,1.6371]
[1734502912069,11.32681202,215.8,215.73,11.32681202]
[1734502912769,11.32681202,215.79,215.72,12.84341202]
[1734502913817,11.32681202,215.8,215.73,11.32681202]
[1734502914017,11.32681202,215.85,215.78,11.32681202]
[1734502914182,20.0,215.82,215.78,11.32681202]
[1734502915990,20.0,215.82,215.77,11.32681202]
[1734502917699,20.0,215.82,215.78,11.32681202]
[1734502918418,20.0,215.82,215.76,11.32681202]
[1734502918581,11.32681202,215.81,215.74,11.32681202]
[1734502919009,11.32681202,215.79,215.72,12.84341202]
[1734502919196,11.32681202,215.8,215.73,11.32681202]
[1734502919508,20.0,215.8,215.74,11.32681202]
[1734502920411,11.32681202,215.77,215.72,1.5166]
[1734502920611,11.32681202,215.78,215.72,1.5166]
[1734502924298,11.27100195,215.78,215.72,1.5166]
[1734502927826,11.32681202,215.76,215.68,11.32681202]
[1734502928001,11.32681202,215.75,215.68,11.32681202]
[1734502928196,11.32681202,215.72,215.67,1.5166]
[1734502928398,11.32681202,215.73,215.67,1.5166]
[1734502928597,23.776884,215.78,215.67,1.5166]
[1734502928598,11.32681202,215.72,215.67,1.5166]
[1734502928905,11.32681202,215.73,215.67,1.5166]
[1734502929097,11.32681202,215.76,215.69,11.32681202]
[1734502929294,11.32681202,215.79,215.72,11.32681202]
[1734502929526,20.0,215.76,215.72,11.32681202]
[1734502929693,31.32681202,215.8,215.73,11.32681202]
[1734502929894,20.0,215.79,215.73,11.32681202]
[1734502930121,20.0,215.78,215.73,11.32681202]
[1734502930504,11.32681202,215.82,215.75,11.32681202]
[1734502931200,11.32681202,215.83,215.76,11.32681202]
[1734502932295,33.757812,215.88,215.77,11.32681202]
[1734502932296,11.32681202,215.84,215.77,11.32681202]
[1734502932510,11.32681202,215.86,215.78,11.32681202]
[1734502933208,11.32681202,215.84,215.77,11.32681202]
[1734502934736,11.32681202,215.84,215.76,12.84341202]
[1734502935510,11.32681202,215.8,215.76,1.5166]
[1734502935906,11.32681202,215.81,215.76,1.5166]
[1734502936118,20.0,215.84,215.76,1.5166]
[1734502936316,11.32681202,215.83,215.76,1.5166]
[1734502936539,11.32681202,215.81,215.76,1.5166]
[1734502937258,11.32681202,215.83,215.76,12.84341202]
[1734502938119,7.25195863,215.83,215.76,8.76855863]
[1734502938516,20.0,215.84,215.77,7.25195863]
[1734502938517,27.25195863,215.84,215.77,7.25195863]
[1734502938720,20.0,215.84,215.77,7.25195863]
[1734502938937,27.146812,215.88,215.76,1.5166]
[1734502938938,7.25195863,215.88,215.81,7.25195863]
[1734502939244,7.25195863,215.89,215.82,7.25195863]
[1734502940933,7.25195863,215.88,215.8,7.25195863]
[1734502941120,7.25195863,215.86,215.79,7.25195863]
[1734502941916,16.514959,215.92,215.78,6.5021]
[1734502942124,11.32699691,215.87,215.8,11.32699691]
[1734502942539,11.32699691,215.88,215.81,11.32699691]
[1734502942720,16.514959,215.92,215.78,6.5021]
[1734502942721,11.32699691,215.89,215.82,11.32699691]
[1734502944925,11.32699691,215.9,215.83,11.32699691]
[1734502945129,31.32699691,215.89,215.82,11.32699691]
[1734502945558,11.32699691,215.88,215.78,6.5021]
[1734502945764,11.32699691,215.84,215.78,6.5021]
[1734502948444,11.32699691,215.83,215.76,12.84359691]
[1734502948833,11.32699691,215.82,215.76,1.5166]
[1734502949871,11.32699691,215.83,215.76,12.84359691]
[1734502950656,11.32699691,215.82,215.76,1.5166]
[1734502951338,11.32699691,215.83,215.76,12.84359691]
[1734502951551,11.32699691,215.84,215.77,11.32699691]
[1734502952971,11.32699691,215.86,215.78,11.32699691]
[1734502953344,11.32699691,215.86,215.79,11.32699691]
[1734502953672,11.32699691,215.87,215.8,11.32699691]
[1734502955168,11.32699691,215.89,215.82,11.32699691]
[1734502956071,11.32699691,215.91,215.84,11.32699691]
[1734502959178,18.57895591,215.92,215.85,1.6351]
[1734502959543,11.32699691,215.91,215.85,1.6351]
[1734502959745,11.32699691,215.9,215.85,1.6351]
[1734502959974,11.32699691,215.91,215.85,1.6351]
[1734502961588,9.2592,216.01,215.88,11.32699691]
[1734502961890,22.65399391,215.97,215.9,11.32699691]
[1734502962048,7.2411841,215.99,215.91,7.2411841]
[1734502962443,18.5681811,215.99,215.91,7.2411841]
[1734502963690,7.2411841,215.98,215.91,7.2411841]
[1734502964060,11.31520686,215.98,215.91,11.31520686]
[1734502964387,11.31520686,215.97,215.9,11.31520686]
[1734502967899,20.0,215.97,215.9,11.31520686]
[1734502968087,11.31520686,215.99,215.91,11.31520686]
[1734502968493,11.31520686,215.98,215.9,11.31520686]
[1734502969571,11.315207,216.0,215.86,7.64361763]
[1734502969572,31.31520686,215.97,215.89,11.31520686]
[1734502970072,11.31520686,215.96,215.89,11.31520686]
[1734502970575,31.31520686,215.97,215.9,11.31520686]
[1734502970785,20.0,215.97,215.9,11.31520686]
[1734502971191,20.0,215.97,215.86,7.64361763]
[1734502971192,20.0,215.97,215.91,11.31520686]
[1734502971572,20.0,215.97,215.9,11.31520686]
[1734502971774,31.31520686,215.97,215.9,11.31520686]
[1734502974915,22.63041386,216.0,215.93,11.31520686]
[1734502975080,6.4462,216.03,215.88,6.948]
[1734502975081,11.31520686,215.97,215.88,6.948]
[1734502975396,11.31520686,215.96,215.88,11.31520686]
[1734502975570,11.31520686,215.96,215.89,11.31520686]
[1734502976197,11.31520686,215.98,215.9,11.31520686]
[1734502976373,31.31520686,215.98,215.9,11.31520686]
[1734502976684,11.31520686,215.99,215.92,11.31520686]
[1734502976896,11.31520686,215.99,215.91,11.31520686]
[1734502977285,11.31520686,216.01,215.94,12.85650686]
[1734502977600,11.31520686,216.02,215.95,11.31520686]
[1734502977776,11.31520686,216.01,215.94,12.85650686]
[1734502977971,22.63041386,216.03,215.96,11.31520686]
[1734502978186,11.315207,216.03,215.97,11.31520686]
[1734502978389,11.31520686,216.04,215.97,11.31520686]
[1734502979305,11.31520686,216.05,215.98,11.31520686]
[1734502980266,11.31520686,216.09,216.01,11.31520686]
[1734502980677,11.31520686,216.09,216.02,12.85650686]
[1734502981110,11.31520686,216.1,216.03,11.31520686]
[1734502981339,23.1036877,216.2,216.02,1.5413]
[1734502981340,11.31520686,216.11,216.04,11.31520686]
[1734502981541,6.3923,216.18,216.06,11.31520686]
[1734502981839,11.31520686,216.13,216.06,11.31520686]
[1734502982825,11.31520686,216.14,216.07,11.31520686]
[1734502985253,11.31520686,216.13,216.06,11.31520686]
[1734502985541,11.31520686,216.12,216.05,11.31520686]
[1734502986248,7.23236128,216.12,216.05,7.23236128]
[1734502986615,7.23236128,216.13,216.05,7.23236128]
[1734502987152,7.17658225,216.13,216.05,7.23236128]
[1734502987319,7.17658225,216.13,216.06,7.23236128]
[1734502988725,7.23236128,216.14,216.07,7.23236128]
[1734502988926,27.23236128,216.15,216.08,7.23236128]
[1734502989122,20.0,216.15,216.08,7.23236128]
[1734502989324,27.23236128,216.15,216.08,7.23236128]
[1734502991045,11.02465651,216.23,216.11,7.23236128]
[1734502991231,7.23236128,216.18,216.11,8.87486128]
[1734502992041,7.23236128,216.19,216.12,7.23236128]
[1734502992533,7.23236128,216.18,216.11,8.87486128]
[1734502994243,7.23236128,216.19,216.12,7.23236128]
[1734502994642,7.23236128,216.18,216.11,8.87486128]
[1734502996736,7.23236128,216.19,216.12,7.23236128]
[1734502997051,7.23236128,216.18,216.11,8.87486128]
[1734502999756,7.23236128,216.19,216.12,7.23236128]
[1734503001949,8.874861,216.23,216.11,1.6425]
[1734503001950,7.23236128,216.2,216.13,7.23236128]
[1734503002149,8.874861,216.23,216.14,31.00924528]